[Event "*** Titled Tuesday Blitz"]
[Site "Chess.com"]
[Date "2020.05.19"]
[Round "6"]
[White "BernardoRoselli"]
[Black "joksijoksi"]
[Result "1-0"]
[WhiteElo "2461"]
[BlackElo "2322"]
[TimeControl "180+1"]
[EndTime "13:07:28 PDT"]
[Termination "BernardoRoselli won on time"]

1. e4 {[%clk 0:03:00.9]} 1... e6 {[%clk 0:02:31.8]} 2. d4 {[%clk 0:03:00.1]}
2... d5 {[%clk 0:02:32.2]} 3. Nc3 {[%clk 0:02:59.9]} 3... Bb4 {[%clk 0:02:31.8]}
4. e5 {[%clk 0:02:59.5]} 4... Qd7 {[%clk 0:02:31.2]} 5. a3 {[%clk 0:02:59.1]}
5... Bxc3+ {[%clk 0:02:31.1]} 6. bxc3 {[%clk 0:02:59.4]} 6... b6 {[%clk
0:02:32]} 7. Qg4 {[%clk 0:02:59.4]} 7... f5 {[%clk 0:02:31.9]} 8. Qg3 {[%clk
0:02:59.4]} 8... Ba6 {[%clk 0:02:31.8]} 9. Bxa6 {[%clk 0:02:59.3]} 9... Nxa6
{[%clk 0:02:32.7]} 10. a4 {[%clk 0:02:59.6]} 10... Nb8 {[%clk 0:02:29.9]} 11. a5
{[%clk 0:02:59.1]} 11... Nc6 {[%clk 0:02:17.6]} 12. axb6 {[%clk 0:02:57.9]}
12... cxb6 {[%clk 0:02:18.5]} 13. Ne2 {[%clk 0:02:57.8]} 13... Qf7 {[%clk
0:02:15.2]} 14. O-O {[%clk 0:02:48.6]} 14... Nge7 {[%clk 0:02:13.8]} 15. Ba3
{[%clk 0:02:46.2]} 15... O-O {[%clk 0:02:13.2]} 16. Nf4 {[%clk 0:02:45.2]} 16...
Na5 {[%clk 0:02:08.3]} 17. h4 {[%clk 0:02:43.2]} 17... Rfc8 {[%clk 0:02:03]} 18.
h5 {[%clk 0:02:41.1]} 18... Rc4 {[%clk 0:01:34.3]} 19. Qg5 {[%clk 0:02:40.7]}
19... Nec6 {[%clk 0:01:03.2]} 20. h6 {[%clk 0:02:35.7]} 20... g6 {[%clk
0:00:46.7]} 21. Bb2 {[%clk 0:02:20]} 21... Qe7 {[%clk 0:00:35.8]} 22. Qg3 {[%clk
0:02:18.3]} 22... Kh8 {[%clk 0:00:32.7]} 23. Rfe1 {[%clk 0:02:17]} 23... Qf8
{[%clk 0:00:20.7]} 24. Qg5 {[%clk 0:02:14.8]} 24... Qe7 {[%clk 0:00:20.9]} 25.
Qxe7 {[%clk 0:02:14.4]} 25... Nxe7 {[%clk 0:00:21]} 26. Nxe6 {[%clk 0:02:14.5]}
26... Rac8 {[%clk 0:00:20.1]} 27. Ng5 {[%clk 0:02:04.5]} 27... Kg8 {[%clk
0:00:17.4]} 28. f3 {[%clk 0:02:03.7]} 28... f4 {[%clk 0:00:07.3]} 29. Nh3 {[%clk
0:02:01.7]} 29... Nf5 {[%clk 0:00:04.7]} 30. Nxf4 {[%clk 0:02:00.5]} 30... Rd8
{[%clk 0:00:04.6]} 31. e6 {[%clk 0:01:55.8]} 31... Nc6 {[%clk 0:00:01.1]} 32.
Ba3 {[%clk 0:01:50.1]} 1-0

[Event "*** Titled Tuesday Blitz"]
[Site "Chess.com"]
[Date "2020.05.19"]
[Round "6"]
[White "promen1999"]
[Black "Arjun2002"]
[Result "1-0"]
[WhiteElo "2888"]
[BlackElo "2675"]
[TimeControl "180+1"]
[EndTime "13:07:30 PDT"]
[Termination "promen1999 won by resignation"]

1. Nf3 {[%clk 0:02:59]} 1... d5 {[%clk 0:03:00]} 2. e3 {[%clk 0:02:58.2]} 2...
Nf6 {[%clk 0:02:58.5]} 3. c4 {[%clk 0:02:58]} 3... c6 {[%clk 0:02:58.9]} 4. Nc3
{[%clk 0:02:57.3]} 4... e6 {[%clk 0:02:59.2]} 5. d4 {[%clk 0:02:55.6]} 5... Nbd7
{[%clk 0:02:57.4]} 6. Qc2 {[%clk 0:02:55.1]} 6... Bd6 {[%clk 0:02:56.6]} 7. Bd3
{[%clk 0:02:53.3]} 7... O-O {[%clk 0:02:56.7]} 8. O-O {[%clk 0:02:46.4]} 8...
dxc4 {[%clk 0:02:55.2]} 9. Bxc4 {[%clk 0:02:46]} 9... b5 {[%clk 0:02:55.8]} 10.
Be2 {[%clk 0:02:44.9]} 10... a6 {[%clk 0:02:54.6]} 11. e4 {[%clk 0:02:41.3]}
11... e5 {[%clk 0:02:53.8]} 12. Rd1 {[%clk 0:02:37.5]} 12... Qc7 {[%clk
0:02:52.9]} 13. g3 {[%clk 0:02:35.2]} 13... Re8 {[%clk 0:02:51.8]} 14. Bg5
{[%clk 0:02:30.4]} 14... exd4 {[%clk 0:02:23.3]} 15. Nxd4 {[%clk 0:02:24.6]}
15... Ne5 {[%clk 0:02:23.6]} 16. Bxf6 {[%clk 0:02:21.9]} 16... gxf6 {[%clk
0:02:23.3]} 17. Rac1 {[%clk 0:02:17.5]} 17... Bh3 {[%clk 0:02:01.2]} 18. Qd2
{[%clk 0:02:05]} 18... Rad8 {[%clk 0:01:43.8]} 19. Nd5 {[%clk 0:02:00]} 19...
cxd5 {[%clk 0:01:35.7]} 20. Rxc7 {[%clk 0:01:59.7]} 20... Bxc7 {[%clk
0:01:36.3]} 21. Qh6 {[%clk 0:01:58.5]} 21... Bc8 {[%clk 0:01:28.9]} 22. Qxf6
{[%clk 0:01:45.2]} 22... dxe4 {[%clk 0:01:28.9]} 23. Nf5 {[%clk 0:01:38.7]}
23... Bxf5 {[%clk 0:01:10.8]} 24. Qxf5 {[%clk 0:01:38.5]} 24... Rxd1+ {[%clk
0:01:05.8]} 25. Bxd1 {[%clk 0:01:39.4]} 25... Nd3 {[%clk 0:01:04.8]} 26. Bb3
{[%clk 0:01:33.2]} 26... Re7 {[%clk 0:00:59.4]} 27. Bd5 {[%clk 0:01:25.4]} 27...
Nc5 {[%clk 0:00:22.4]} 28. Bxf7+ {[%clk 0:01:24.7]} 28... Rxf7 {[%clk
0:00:22.6]} 29. Qxc5 {[%clk 0:01:25.2]} 29... Bb8 {[%clk 0:00:20.6]} 30. Qg5+
{[%clk 0:01:19.6]} 1-0

[Event "*** Titled Tuesday Blitz"]
[Site "Chess.com"]
[Date "2020.05.19"]
[Round "6"]
[White "RichardShtivelband"]
[Black "bait_or_mate"]
[Result "0-1"]
[WhiteElo "2290"]
[BlackElo "2460"]
[TimeControl "180+1"]
[EndTime "13:07:31 PDT"]
[Termination "bait_or_mate won by resignation"]

1. e4 {[%clk 0:02:59.4]} 1... c5 {[%clk 0:02:59.8]} 2. Nf3 {[%clk 0:02:58.6]}
2... e6 {[%clk 0:02:59.8]} 3. d4 {[%clk 0:02:58.4]} 3... cxd4 {[%clk 0:03:00.7]}
4. Nxd4 {[%clk 0:02:58.8]} 4... Nc6 {[%clk 0:03:01.6]} 5. Nc3 {[%clk 0:02:58.4]}
5... Qc7 {[%clk 0:03:01.9]} 6. Be2 {[%clk 0:02:58.2]} 6... a6 {[%clk 0:03:02]}
7. O-O {[%clk 0:02:57.5]} 7... Nf6 {[%clk 0:03:02.5]} 8. Be3 {[%clk 0:02:57.7]}
8... Bb4 {[%clk 0:03:01.4]} 9. Na4 {[%clk 0:02:57.2]} 9... O-O {[%clk
0:03:00.3]} 10. c4 {[%clk 0:02:56]} 10... Nxe4 {[%clk 0:02:55.2]} 11. Bf3 {[%clk
0:02:55.6]} 11... f5 {[%clk 0:02:54.2]} 12. Bxe4 {[%clk 0:02:53]} 12... fxe4
{[%clk 0:02:55.1]} 13. c5 {[%clk 0:02:53.9]} 13... Ba5 {[%clk 0:02:44.5]} 14. a3
{[%clk 0:02:50.3]} 14... Qe5 {[%clk 0:02:42.2]} 15. Nxc6 {[%clk 0:02:45.7]}
15... bxc6 {[%clk 0:02:38.1]} 16. Bd4 {[%clk 0:02:44.7]} 16... Qf4 {[%clk
0:02:09.2]} 17. b4 {[%clk 0:02:39.8]} 17... Bc7 {[%clk 0:02:08.9]} 18. g3 {[%clk
0:02:39.7]} 18... Qf3 {[%clk 0:02:07.1]} 19. Re1 {[%clk 0:02:35.9]} 19... a5
{[%clk 0:01:47.8]} 20. Nb6 {[%clk 0:02:16.4]} 20... Bxb6 {[%clk 0:01:32.9]} 21.
cxb6 {[%clk 0:02:17.3]} 21... d6 {[%clk 0:01:30.4]} 22. bxa5 {[%clk 0:02:15.8]}
22... Rxa5 {[%clk 0:01:28.8]} 23. Qd2 {[%clk 0:02:12]} 23... Rxa3 {[%clk
0:01:23.2]} 24. Rxa3 {[%clk 0:02:10.3]} 24... Qxa3 {[%clk 0:01:22.1]} 25. Rxe4
{[%clk 0:02:10]} 25... e5 {[%clk 0:01:17.1]} 26. Be3 {[%clk 0:02:09.5]} 26... d5
{[%clk 0:01:04.2]} 27. Rh4 {[%clk 0:02:04.3]} 27... Bf5 {[%clk 0:00:57.2]} 28.
Qc1 {[%clk 0:01:56.9]} 28... Qxc1+ {[%clk 0:00:49.3]} 29. Bxc1 {[%clk
0:01:57.8]} 29... d4 {[%clk 0:00:47.5]} 30. Ba3 {[%clk 0:01:49.3]} 30... d3
{[%clk 0:00:38]} 31. Kf1 {[%clk 0:01:43]} 31... Rd8 {[%clk 0:00:25]} 32. Ke1
{[%clk 0:01:33.9]} 32... d2+ {[%clk 0:00:24.9]} 33. Kd1 {[%clk 0:01:34.1]} 33...
Bc2+ {[%clk 0:00:24.9]} 0-1

[Event "*** Titled Tuesday Blitz"]
[Site "Chess.com"]
[Date "2020.05.19"]
[Round "6"]
[White "MasterKroket"]
[Black "HaryKane"]
[Result "1-0"]
[WhiteElo "2414"]
[BlackElo "2547"]
[TimeControl "180+1"]
[EndTime "13:07:36 PDT"]
[Termination "MasterKroket won by resignation"]

1. d4 {[%clk 0:03:00.9]} 1... e6 {[%clk 0:02:59.6]} 2. c4 {[%clk 0:02:58.2]}
2... f5 {[%clk 0:02:59.3]} 3. Nf3 {[%clk 0:02:57.7]} 3... Nf6 {[%clk 0:02:58.4]}
4. Nc3 {[%clk 0:02:56.8]} 4... Bb4 {[%clk 0:02:57.3]} 5. Qb3 {[%clk 0:02:57.5]}
5... Bxc3+ {[%clk 0:02:56.5]} 6. Qxc3 {[%clk 0:02:57.3]} 6... O-O {[%clk
0:02:56.7]} 7. Bg5 {[%clk 0:02:55.3]} 7... h6 {[%clk 0:02:55.9]} 8. Bxf6 {[%clk
0:02:55.1]} 8... Qxf6 {[%clk 0:02:56.8]} 9. h4 {[%clk 0:02:54.6]} 9... b6 {[%clk
0:02:55.4]} 10. e3 {[%clk 0:02:52.4]} 10... Bb7 {[%clk 0:02:54.5]} 11. Bd3
{[%clk 0:02:50.8]} 11... d6 {[%clk 0:02:53.2]} 12. h5 {[%clk 0:02:47.1]} 12...
Nd7 {[%clk 0:02:51.7]} 13. Nh4 {[%clk 0:02:44.1]} 13... a5 {[%clk 0:02:46.5]}
14. f3 {[%clk 0:02:40.3]} 14... c5 {[%clk 0:02:41]} 15. O-O-O {[%clk 0:02:30.2]}
15... a4 {[%clk 0:02:34.2]} 16. Kb1 {[%clk 0:02:28.8]} 16... a3 {[%clk
0:02:28.2]} 17. b3 {[%clk 0:02:27.5]} 17... Rfe8 {[%clk 0:02:15.2]} 18. Bc2
{[%clk 0:02:22.9]} 18... d5 {[%clk 0:02:02.5]} 19. cxd5 {[%clk 0:02:19.6]} 19...
Bxd5 {[%clk 0:02:01.5]} 20. e4 {[%clk 0:02:14.5]} 20... fxe4 {[%clk 0:01:44.7]}
21. fxe4 {[%clk 0:02:13]} 21... Bb7 {[%clk 0:01:43.3]} 22. e5 {[%clk 0:02:09.9]}
22... Qg5 {[%clk 0:01:40.7]} 23. Qd3 {[%clk 0:02:05.8]} 23... Nf8 {[%clk
0:01:35.7]} 24. Rdf1 {[%clk 0:01:42.4]} 24... Rad8 {[%clk 0:01:20.4]} 25. Rxf8+
{[%clk 0:01:39.4]} 25... Kxf8 {[%clk 0:01:12.4]} 26. Ng6+ {[%clk 0:01:24]} 26...
Kg8 {[%clk 0:01:08.7]} 27. Rf1 {[%clk 0:01:24.5]} 27... Qf5 {[%clk 0:00:36.7]}
28. Rxf5 {[%clk 0:01:23.1]} 28... exf5 {[%clk 0:00:37.6]} 29. Qxf5 {[%clk
0:01:17.1]} 29... Rxd4 {[%clk 0:00:36.8]} 30. e6 {[%clk 0:01:12.4]} 1-0

[Event "*** Titled Tuesday Blitz"]
[Site "Chess.com"]
[Date "2020.05.19"]
[Round "6"]
[White "barbara25"]
[Black "Andrii_Prydun"]
[Result "0-1"]
[WhiteElo "2185"]
[BlackElo "2375"]
[TimeControl "180+1"]
[EndTime "13:07:37 PDT"]
[Termination "Andrii_Prydun won by resignation"]

1. e4 {[%clk 0:03:00.9]} 1... c6 {[%clk 0:02:48.9]} 2. d4 {[%clk 0:03:00.2]}
2... d5 {[%clk 0:02:49.8]} 3. f3 {[%clk 0:03:00.6]} 3... g6 {[%clk 0:02:48.8]}
4. Nc3 {[%clk 0:03:00]} 4... Bg7 {[%clk 0:02:48.8]} 5. Nge2 {[%clk 0:02:59.9]}
5... Na6 {[%clk 0:02:40.9]} 6. Be3 {[%clk 0:02:59.1]} 6... Nc7 {[%clk
0:02:40.6]} 7. Qd2 {[%clk 0:02:58.8]} 7... b6 {[%clk 0:02:23]} 8. O-O-O {[%clk
0:02:57]} 8... Bb7 {[%clk 0:02:22.4]} 9. h4 {[%clk 0:02:55.5]} 9... h5 {[%clk
0:02:20.8]} 10. g4 {[%clk 0:02:54.9]} 10... hxg4 {[%clk 0:02:20.7]} 11. fxg4
{[%clk 0:02:55]} 11... dxe4 {[%clk 0:02:19.7]} 12. h5 {[%clk 0:02:49.8]} 12...
Nd5 {[%clk 0:02:17.4]} 13. Bg2 {[%clk 0:02:44.9]} 13... Nxe3 {[%clk 0:02:03.9]}
14. Qxe3 {[%clk 0:02:42.9]} 14... gxh5 {[%clk 0:02:01.4]} 15. Qxe4 {[%clk
0:02:06.7]} 15... Nf6 {[%clk 0:01:57.1]} 16. Qf5 {[%clk 0:02:01.4]} 16... hxg4
{[%clk 0:01:49.8]} 17. Rxh8+ {[%clk 0:01:59.7]} 17... Bxh8 {[%clk 0:01:50.7]}
18. Kb1 {[%clk 0:01:56.5]} 18... Qd7 {[%clk 0:01:49.3]} 19. Qf2 {[%clk
0:01:32.4]} 19... O-O-O {[%clk 0:01:48.8]} 20. a3 {[%clk 0:01:26.5]} 20... Bg7
{[%clk 0:01:42.2]} 21. a4 {[%clk 0:01:22]} 21... Kb8 {[%clk 0:01:29.3]} 22. Ng3
{[%clk 0:01:06.3]} 22... e6 {[%clk 0:01:24.1]} 23. a5 {[%clk 0:01:01]} 23... Qc7
{[%clk 0:01:23.9]} 24. axb6 {[%clk 0:00:59.8]} 24... axb6 {[%clk 0:01:24.8]} 25.
Nge4 {[%clk 0:00:53.7]} 25... Nxe4 {[%clk 0:01:24.1]} 26. Nxe4 {[%clk
0:00:52.9]} 26... f5 {[%clk 0:01:24.3]} 27. Nc3 {[%clk 0:00:52.2]} 27... Qd6
{[%clk 0:01:16.5]} 28. Qe2 {[%clk 0:00:39.8]} 28... Bxd4 {[%clk 0:01:09.3]} 29.
Qc4 {[%clk 0:00:36.8]} 29... e5 {[%clk 0:01:06.1]} 30. Na4 {[%clk 0:00:32.2]}
30... b5 {[%clk 0:01:02.9]} 0-1

[Event "*** Titled Tuesday Blitz"]
[Site "Chess.com"]
[Date "2020.05.19"]
[Round "6"]
[White "AnkitGajwa"]
[Black "RobPeresian"]
[Result "1-0"]
[WhiteElo "2441"]
[BlackElo "2279"]
[TimeControl "180+1"]
[EndTime "13:07:38 PDT"]
[Termination "AnkitGajwa won by resignation"]

1. c4 {[%clk 0:02:59.9]} 1... c6 {[%clk 0:02:59.1]} 2. Nc3 {[%clk 0:02:58.3]}
2... d5 {[%clk 0:02:59]} 3. d4 {[%clk 0:02:57.5]} 3... Nf6 {[%clk 0:02:58.8]} 4.
Nf3 {[%clk 0:02:57.3]} 4... dxc4 {[%clk 0:02:58.3]} 5. a4 {[%clk 0:02:57.2]}
5... Bf5 {[%clk 0:02:57.9]} 6. Ne5 {[%clk 0:02:57.2]} 6... Nbd7 {[%clk
0:02:56.7]} 7. Nxc4 {[%clk 0:02:53.9]} 7... Qc7 {[%clk 0:02:56.2]} 8. f3 {[%clk
0:02:52.8]} 8... e5 {[%clk 0:02:55.8]} 9. e4 {[%clk 0:02:51.7]} 9... exd4 {[%clk
0:02:55.8]} 10. Qxd4 {[%clk 0:02:47.9]} 10... Bc5 {[%clk 0:02:55.9]} 11. Qd2
{[%clk 0:02:40.7]} 11... Be6 {[%clk 0:02:55.7]} 12. Qf4 {[%clk 0:02:40.4]} 12...
Qxf4 {[%clk 0:02:38]} 13. Bxf4 {[%clk 0:02:39.8]} 13... O-O-O {[%clk 0:02:34.6]}
14. Na5 {[%clk 0:02:30.1]} 14... Nb6 {[%clk 0:02:21]} 15. Rc1 {[%clk 0:01:58]}
15... Bb4 {[%clk 0:02:17.4]} 16. Nxc6 {[%clk 0:01:37.9]} 16... bxc6 {[%clk
0:02:18.3]} 17. Ba6+ {[%clk 0:01:36.7]} 17... Kd7 {[%clk 0:02:18.3]} 18. Ke2
{[%clk 0:01:33.5]} 18... Bc4+ {[%clk 0:02:12.8]} 19. Bxc4 {[%clk 0:01:32.5]}
19... Nxc4 {[%clk 0:02:13.7]} 20. Na2 {[%clk 0:01:32.8]} 20... Bd2 {[%clk
0:01:56.4]} 21. Bxd2 {[%clk 0:01:27]} 21... Nxd2 {[%clk 0:01:56.6]} 22. Rhd1
{[%clk 0:01:26.4]} 22... Kc7 {[%clk 0:01:42.7]} 23. Rxd2 {[%clk 0:01:25.4]}
23... Rxd2+ {[%clk 0:01:42.5]} 24. Kxd2 {[%clk 0:01:26.3]} 24... Kb6 {[%clk
0:01:38.4]} 25. b4 {[%clk 0:01:23.4]} 25... Rd8+ {[%clk 0:01:36]} 26. Ke3 {[%clk
0:01:23]} 26... a5 {[%clk 0:01:33.2]} 27. bxa5+ {[%clk 0:01:18.6]} 27... Kxa5
{[%clk 0:01:33.4]} 28. Rxc6 {[%clk 0:01:19.2]} 28... Kxa4 {[%clk 0:01:33.5]} 29.
Rc7 {[%clk 0:01:19.7]} 29... Rd7 {[%clk 0:01:33.8]} 30. Nc3+ {[%clk 0:01:18.2]}
30... Kb4 {[%clk 0:01:30.4]} 31. Rxd7 {[%clk 0:01:08.8]} 31... Nxd7 {[%clk
0:01:29.9]} 32. Kd4 {[%clk 0:01:08.7]} 32... Ka5 {[%clk 0:01:20.7]} 33. Kd5
{[%clk 0:01:07.9]} 33... Kb4 {[%clk 0:01:20.9]} 34. Kd6 {[%clk 0:01:08]} 34...
Nf8 {[%clk 0:01:09.6]} 35. Nd5+ {[%clk 0:01:05.3]} 35... Kc4 {[%clk 0:01:09.7]}
36. Nf4 {[%clk 0:01:02.5]} 36... g5 {[%clk 0:01:07.9]} 37. Ke7 {[%clk
0:01:01.7]} 1-0

[Event "*** Titled Tuesday Blitz"]
[Site "Chess.com"]
[Date "2020.05.19"]
[Round "6"]
[White "TheBigBadChessDad"]
[Black "larisakalinina"]
[Result "1-0"]
[WhiteElo "2255"]
[BlackElo "2018"]
[TimeControl "180+1"]
[EndTime "13:07:38 PDT"]
[Termination "TheBigBadChessDad won by resignation"]

1. d4 {[%clk 0:03:00.9]} 1... c5 {[%clk 0:02:59.9]} 2. c3 {[%clk 0:03:00.3]}
2... Nf6 {[%clk 0:02:57.3]} 3. Nf3 {[%clk 0:02:59.8]} 3... cxd4 {[%clk
0:02:54.6]} 4. cxd4 {[%clk 0:02:59]} 4... g6 {[%clk 0:02:54.4]} 5. Nc3 {[%clk
0:02:59.4]} 5... d5 {[%clk 0:02:53.1]} 6. Bg5 {[%clk 0:02:59.6]} 6... Bg7 {[%clk
0:02:51.7]} 7. Bxf6 {[%clk 0:02:59.1]} 7... Bxf6 {[%clk 0:02:50.8]} 8. e3 {[%clk
0:02:58.8]} 8... O-O {[%clk 0:02:49.6]} 9. Bd3 {[%clk 0:02:55.3]} 9... Nc6
{[%clk 0:02:49.4]} 10. h3 {[%clk 0:02:54.8]} 10... a6 {[%clk 0:02:45.2]} 11. Rc1
{[%clk 0:02:54.2]} 11... e5 {[%clk 0:02:31.3]} 12. dxe5 {[%clk 0:02:53.6]} 12...
Nxe5 {[%clk 0:02:30.7]} 13. O-O {[%clk 0:02:48.4]} 13... Be6 {[%clk 0:02:18.9]}
14. Nd4 {[%clk 0:02:46.5]} 14... Nxd3 {[%clk 0:02:13.2]} 15. Qxd3 {[%clk
0:02:44.2]} 15... Qd7 {[%clk 0:01:58.6]} 16. Nce2 {[%clk 0:02:34]} 16... Rac8
{[%clk 0:01:48.6]} 17. Nf4 {[%clk 0:02:32.3]} 17... Bg7 {[%clk 0:01:21]} 18.
Rfd1 {[%clk 0:02:30.4]} 18... Rxc1 {[%clk 0:01:14.7]} 19. Rxc1 {[%clk
0:02:29.8]} 19... Rc8 {[%clk 0:01:14.8]} 20. Rxc8+ {[%clk 0:02:27.2]} 20... Qxc8
{[%clk 0:01:15.7]} 21. b3 {[%clk 0:02:26.8]} 21... Bxd4 {[%clk 0:00:41.8]} 22.
Qxd4 {[%clk 0:02:22.9]} 22... Qc1+ {[%clk 0:00:41]} 23. Kh2 {[%clk 0:02:22.2]}
23... Qc2 {[%clk 0:00:38.7]} 24. Nxe6 {[%clk 0:02:15.3]} 24... fxe6 {[%clk
0:00:37.3]} 25. Qf6 {[%clk 0:02:15.7]} 25... Qf5 {[%clk 0:00:30.5]} 26. Qxf5
{[%clk 0:02:13.7]} 26... exf5 {[%clk 0:00:20.3]} 27. Kg3 {[%clk 0:02:07.6]}
27... g5 {[%clk 0:00:20.5]} 28. h4 {[%clk 0:02:05.5]} 28... h6 {[%clk 0:00:20]}
29. hxg5 {[%clk 0:02:05]} 29... hxg5 {[%clk 0:00:20.9]} 30. f4 {[%clk
0:02:03.2]} 30... g4 {[%clk 0:00:17.6]} 31. Kh4 {[%clk 0:02:03.4]} 31... Kf7
{[%clk 0:00:16.5]} 32. Kg5 {[%clk 0:02:03.6]} 32... Ke6 {[%clk 0:00:16.7]} 33.
g3 {[%clk 0:01:52]} 33... b6 {[%clk 0:00:16.1]} 34. b4 {[%clk 0:01:48.5]} 34...
a5 {[%clk 0:00:12.7]} 35. bxa5 {[%clk 0:01:47.1]} 35... bxa5 {[%clk 0:00:13.6]}
36. a4 {[%clk 0:01:47.4]} 36... d4 {[%clk 0:00:09.9]} 37. exd4 {[%clk
0:01:47.4]} 37... Kd5 {[%clk 0:00:10.4]} 38. Kxf5 {[%clk 0:01:47.2]} 38... Kxd4
{[%clk 0:00:11.3]} 39. Kxg4 {[%clk 0:01:44.6]} 39... Kc4 {[%clk 0:00:11.7]} 40.
f5 {[%clk 0:01:44.9]} 40... Kb4 {[%clk 0:00:12.3]} 41. f6 {[%clk 0:01:45.4]}
41... Kxa4 {[%clk 0:00:12.7]} 42. f7 {[%clk 0:01:46]} 1-0

[Event "*** Titled Tuesday Blitz"]
[Site "Chess.com"]
[Date "2020.05.19"]
[Round "6"]
[White "51616516516"]
[Black "Ashedu66"]
[Result "1-0"]
[WhiteElo "2332"]
[BlackElo "2135"]
[TimeControl "180+1"]
[EndTime "13:07:42 PDT"]
[Termination "51616516516 won by resignation"]

1. Nf3 {[%clk 0:03:00.9]} 1... d5 {[%clk 0:02:59.2]} 2. c4 {[%clk 0:02:56.8]}
2... e6 {[%clk 0:02:58.5]} 3. d4 {[%clk 0:02:56.1]} 3... Nf6 {[%clk 0:02:58.5]}
4. Nc3 {[%clk 0:02:55.8]} 4... c6 {[%clk 0:02:58.4]} 5. Bg5 {[%clk 0:02:52.9]}
5... Nbd7 {[%clk 0:02:57.9]} 6. e3 {[%clk 0:02:52.9]} 6... Qa5 {[%clk
0:02:53.7]} 7. cxd5 {[%clk 0:02:53.1]} 7... Nxd5 {[%clk 0:02:50.7]} 8. Qd2
{[%clk 0:02:53.5]} 8... c5 {[%clk 0:02:44.2]} 9. Bd3 {[%clk 0:02:27]} 9... cxd4
{[%clk 0:02:31.8]} 10. exd4 {[%clk 0:02:26]} 10... Bb4 {[%clk 0:02:06.1]} 11.
Rc1 {[%clk 0:02:23.8]} 11... O-O {[%clk 0:01:42.7]} 12. O-O {[%clk 0:02:23]}
12... N7f6 {[%clk 0:01:30.2]} 13. Ne5 {[%clk 0:02:15.6]} 13... Rd8 {[%clk
0:01:11.7]} 14. a3 {[%clk 0:02:06.2]} 14... Bxc3 {[%clk 0:01:06.8]} 15. bxc3
{[%clk 0:02:07.1]} 15... Bd7 {[%clk 0:00:57.4]} 16. Qb2 {[%clk 0:01:51.9]} 16...
Qb6 {[%clk 0:00:50.7]} 17. Qe2 {[%clk 0:01:42.6]} 17... h6 {[%clk 0:00:42.6]}
18. Bh4 {[%clk 0:01:33.3]} 18... Nf4 {[%clk 0:00:39]} 19. Qf3 {[%clk 0:01:28.1]}
19... Nxd3 {[%clk 0:00:32]} 20. Qxd3 {[%clk 0:01:29]} 20... g5 {[%clk
0:00:29.6]} 21. Bg3 {[%clk 0:01:27]} 21... Bb5 {[%clk 0:00:26.7]} 22. c4 {[%clk
0:01:22.2]} 22... Rxd4 {[%clk 0:00:20.5]} 23. Qf3 {[%clk 0:01:21.2]} 23... Bc6
{[%clk 0:00:19]} 24. Qxf6 {[%clk 0:01:20.5]} 24... Be8 {[%clk 0:00:18.5]} 25. c5
{[%clk 0:01:16.1]} 25... Qc7 {[%clk 0:00:17.4]} 26. Ng6 {[%clk 0:01:13.1]} 1-0

[Event "*** Titled Tuesday Blitz"]
[Site "Chess.com"]
[Date "2020.05.19"]
[Round "6"]
[White "NefeLV"]
[Black "archess2"]
[Result "0-1"]
[WhiteElo "1827"]
[BlackElo "2280"]
[TimeControl "180+1"]
[EndTime "13:07:45 PDT"]
[Termination "archess2 won by resignation"]

1. c4 {[%clk 0:03:00.9]} 1... c6 {[%clk 0:02:59.9]} 2. d4 {[%clk 0:03:00.4]}
2... d5 {[%clk 0:03:00]} 3. e3 {[%clk 0:02:58.1]} 3... Nf6 {[%clk 0:03:00.4]} 4.
Nc3 {[%clk 0:02:57.2]} 4... Bg4 {[%clk 0:02:58.5]} 5. Nf3 {[%clk 0:02:52.4]}
5... e6 {[%clk 0:02:57.5]} 6. Qb3 {[%clk 0:02:49.1]} 6... Qb6 {[%clk 0:02:52.8]}
7. Ne5 {[%clk 0:02:44]} 7... Bf5 {[%clk 0:02:50.7]} 8. c5 {[%clk 0:02:38.4]}
8... Qc7 {[%clk 0:02:49.6]} 9. Be2 {[%clk 0:02:36.1]} 9... b6 {[%clk 0:02:49.2]}
10. cxb6 {[%clk 0:02:33.5]} 10... axb6 {[%clk 0:02:49.4]} 11. g4 {[%clk
0:02:34]} 11... Be4 {[%clk 0:02:48.4]} 12. f3 {[%clk 0:02:33.4]} 12... Bg6
{[%clk 0:02:47.9]} 13. h4 {[%clk 0:02:33.5]} 13... h5 {[%clk 0:02:42.2]} 14. g5
{[%clk 0:02:28.5]} 14... Nfd7 {[%clk 0:02:34]} 15. Nxg6 {[%clk 0:02:27.6]} 15...
Qg3+ {[%clk 0:02:31.5]} 16. Kd2 {[%clk 0:02:23.4]} 16... fxg6 {[%clk 0:02:31.3]}
17. Qc2 {[%clk 0:02:02.5]} 17... Kf7 {[%clk 0:02:23.2]} 18. Kd3 {[%clk 0:01:54]}
18... c5 {[%clk 0:02:21.5]} 19. b3 {[%clk 0:01:44]} 19... Nc6 {[%clk 0:02:18.9]}
20. Kd2 {[%clk 0:01:26]} 20... cxd4 {[%clk 0:02:16.1]} 21. exd4 {[%clk
0:01:16.9]} 21... Nxd4 {[%clk 0:02:09]} 22. Qd3 {[%clk 0:01:10.5]} 22... Nxe2
{[%clk 0:02:07.7]} 23. Nxe2 {[%clk 0:01:09.1]} 23... Qe5 {[%clk 0:02:04.5]} 24.
Qd4 {[%clk 0:00:56]} 24... Qxd4+ {[%clk 0:02:00.2]} 25. Nxd4 {[%clk 0:00:56.9]}
25... e5 {[%clk 0:01:57.8]} 26. Nb5 {[%clk 0:00:49.5]} 26... Bb4+ {[%clk
0:01:54.3]} 27. Ke2 {[%clk 0:00:49.1]} 27... Nc5 {[%clk 0:01:49.9]} 28. Bb2
{[%clk 0:00:46.3]} 28... d4 {[%clk 0:01:47.3]} 29. Nd6+ {[%clk 0:00:35.1]} 29...
Ke6 {[%clk 0:01:45.5]} 30. Nc4 {[%clk 0:00:34]} 30... b5 {[%clk 0:01:44.9]} 31.
Nd2 {[%clk 0:00:27.1]} 31... Rhf8 {[%clk 0:01:37]} 32. a3 {[%clk 0:00:26.1]}
32... Bxd2 {[%clk 0:01:33.3]} 33. Kxd2 {[%clk 0:00:25.6]} 33... Nxb3+ {[%clk
0:01:32.4]} 34. Ke2 {[%clk 0:00:24.3]} 34... Nxa1 {[%clk 0:01:32.5]} 35. Rxa1
{[%clk 0:00:23]} 35... b4 {[%clk 0:01:32.1]} 36. axb4 {[%clk 0:00:21.8]} 36...
Rxa1 {[%clk 0:01:31.9]} 37. Bxa1 {[%clk 0:00:22.7]} 37... Ra8 {[%clk 0:01:31.9]}
38. Kd3 {[%clk 0:00:21.1]} 38... Rxa1 {[%clk 0:01:31.7]} 0-1